Cogmind - Beta 11.2 --- EXPLORER MODE // 2023.01.26 @ 01:14:57 Player: art-hropod Result: Self-destructed Performance ------------- Evolutions (4) 2000 Regions Visited (9) 1800 Robots Destroyed (127) 635 Value Destroyed (4187) 4187 Prototype IDs (2) 40 Alien Tech Used (0) 0 Bonus (280) 280 TOTAL SCORE: 8942 Bonus ------- Follower Combat Kills 294 Friendly Fire -14 Cogmind --------- Core Integrity 433/850 Matter 260/300 Energy 88/100 System Corruption 3% Temperature Cool (24) Movement Flying (21) Location -6/Factory Parts ------- > --- POWER (2) -------- Backup Power III Backup Power III > --- PROPULSION (6) --- Cesium-ion Thruster Surge Thruster Xenon Bombardment Thruster Nuclear Pulse Thruster Nuclear Pulse Thruster Improved Surge Thruster > --- UTILITY (5) ------ (None) > --- WEAPON (3) ------- Backup Laser III Backup Laser III > --- INVENTORY (5) ---- Backup Power III High-capacity Storage Unit Hardened Medium Armor Plating Long-range Missile Launcher Peak State ------------ > --- POWER ------------ Micro Nuclear Core Micro Nuclear Core > --- PROPULSION ------- Medium Treads Medium Treads Medium Treads Medium Treads Medium Treads Medium Treads > --- UTILITY ---------- Improved Heat Sink Huge Storage Unit Large Battery Matter Compressor Layered Light Armor Plating > --- WEAPON ----------- Magnetic Acceleration Cannon Improved Grenade Launcher Chainsword > --- INVENTORY -------- Light Ion Engine Light Deuterium Engine Light Nuclear Core Light Fission Core Fusion Compressor Medium Treads Medium Treads Medium Treads Titanium Leg Improved Carbon-fiber Leg Improved Titanium Leg Disposable Heat Sink Disposable Heat Sink High-capacity Storage Unit Medium Matter Pod Particle Charger Core Shielding Improved Medium Armor Plating Hacking Suite Light EM Pulse Cannon Improved Light Cannon Gauss Cannon [Rating: 64] Favorites ----------- Power Micro Nuclear Core Engine Light Deuterium Engine Power Core Micro Nuclear Core Propulsion Improved Titanium Leg Treads Medium Treads Leg Improved Titanium Leg Hover Unit Backup Propulsion III Flight Unit Nuclear Pulse Thruster Utility Large Battery Device Improved Heat Sink Storage Large Battery Processor Targeting Computer Hackware Hacking Suite Protection Layered Light Armor Plating Weapon Improved Light Cannon Energy Gun Beam Rifle Energy Cannon EM Pulse Cannon Ballistic Gun Light Assault Rifle Ballistic Cannon Improved Light Cannon Launcher Improved Grenade Launcher Slashing Weapon Chainsword Build | -11 -10 -9 -8 -7 -7 -7 -6 -6 -6 ------- Run | Scr Mat Mat Mat Fac Was Fac Fac Was Fac Slots Evolved 9 | . 1 2 2 2 . . 2 . . Power 1 | . . . . 1 . . . . . Propulsion 4 | . 1 1 1 . . . 1 . . Utility 3 | . . . 1 1 . . 1 . . Weapon 1 | . . 1 . . . . . . . Parts Attached 135 | 8 6 8 24 4 . 32 36 7 10 Power 13 | 1 1 1 2 1 . 3 3 1 . Engine 6 | 1 1 . . 1 . 1 1 1 . Core 7 | . . 1 2 . . 2 2 . . Reactor . | . . . . . . . . . . Propulsion 45 | 2 2 3 10 . . 6 14 2 6 Treads 12 | . 1 . . . . . 11 . . Leg 26 | 2 1 3 10 . . 6 3 1 . Wheel . | . . . . . . . . . . Hover . | . . . . . . . . . . Flight 7 | . . . . . . . . 1 6 Utility 34 | 3 1 . 4 1 . 11 9 2 3 Device 10 | . . . 1 1 . 4 1 . 3 Storage 15 | 1 1 . 1 . . 3 8 1 . Processor 1 | 1 . . . . . . . . . Hackware 1 | . . . . . . 1 . . . Protection 7 | 1 . . 2 . . 3 . 1 . Artifact . | . . . . . . . . . . Weapon 43 | 2 2 4 8 2 . 12 10 2 1 Energy Gun 9 | . . 2 3 2 . 2 . . . Energy Cannon 3 | . . . . . . 2 1 . . Ballistic Gun 6 | 2 . . 2 . . 1 . 1 . Ballistic Cannon 12 | . 1 . 1 . . 5 4 1 . Launcher 9 | . 1 2 2 . . . 3 . 1 Special Weapon . | . . . . . . . . . . Impact Weapon . | . . . . . . . . . . Slashing Weapon 4 | . . . . . . 2 2 . . Piercing Weapon . | . . . . . . . . . . Special Melee Weapon . | . . . . . . . . . . Unidentified Prototypes 2 | . . 1 1 . . . . . . Parts Lost 9 | . . . . . . . 1 8 . Power 2 | . . . . . . . . 2 . Propulsion 2 | . . . . . . . . 2 . Utility 3 | . . . . . . . 1 2 . Weapon 2 | . . . . . . . . 2 . Highest Loss Streak 7 | . . . . . . . 1 7 . To Critical Strikes . | . . . . . . . . . . Average Slot Usage (%) 96 | . 100 99 96 99 100 99 99 24 61 Engine 2 | . 12 . . 7 7 2 3 2 12 Core 8 | . . 9 8 7 7 11 8 1 . Treads 7 | . 3 . . . . . 27 4 . Leg 27 | . 33 39 39 35 35 34 8 . . Device 4 | . . . . 6 7 7 6 1 2 Storage 15 | . 14 20 15 14 14 14 18 4 . Protection 5 | . 9 . 7 7 7 6 5 . . Energy Gun 4 | . . 11 8 9 14 2 . 3 12 Energy Cannon 1 | . . . . . . 2 1 . . Ballistic Gun 2 | . 17 3 4 1 . . . . . Ballistic Cannon 6 | . 5 5 3 3 . 7 10 1 . Launcher 4 | . 1 9 7 7 7 5 1 . . Slashing Weapon 2 | . . . . . . 2 5 . . Naked Turns 89 | . . . . . . . . 89 . Heaviest Build 123 | 16 25 28 34 43 43 82 123 118 11 Greatest Support 168 | 20 30 40 98 97 97 98 168 160 33 Greatest Overweight (x) 30 | . . . 8 . . 1 2 30 2 Average Overweight (x) . | . . . . . . . . . . Largest Inventory Capacity 25 | 10 10 10 10 10 10 25 25 25 5 Average Capacity 15 | 9 10 10 10 10 10 16 23 8 5 Most Carried 24 | 6 9 10 10 10 9 20 24 22 5 Average Carried 13 | 2 7 9 9 8 9 13 19 7 4 Final Capacity 25 | 10 10 10 10 10 10 20 25 5 5 Final Carried 22 | 6 8 10 10 9 9 16 22 5 4 Class Distribution -------------------- 97% | Hacker-Mutant Dominant Class ---------------- Hacker-Mutant | -10/Materials Hacker-Mutant | -9/Materials Hacker-Mutant | -8/Materials Hacker-Mutant | -7/Factory Hacker-Mutant | -7/Waste Hacker-Mutant | -7/Factory Hacker-Mutant | -6/Factory Hacker-Mutant | -6/Waste Hacker-Sprinter | -6/Factory Resources | -11 -10 -9 -8 -7 -7 -7 -6 -6 -6 ----------- Run | Scr Mat Mat Mat Fac Was Fac Fac Was Fac Matter Collected 3709 | 203 219 369 331 90 . 1068 1306 53 70 Remotely . | . . . . . . . . . . Salvage Created 4157 | . 319 716 677 47 . 1452 946 . . Parts 261 | . 27 45 43 4 . 93 49 . . Haulers Intercepted 6 | . 1 1 1 . . 2 1 . . Recyclers Shooed 6 | . 2 . 2 . . . 2 . . Parts Field Recycled . | . . . . . . . . . . Retrieved Matter . | . . . . . . . . . . Parts Self-Destructed . | . . . . . . . . . . Prevented . | . . . . . . . . . . Kills | -11 -10 -9 -8 -7 -7 -7 -6 -6 -6 ------- Run | Scr Mat Mat Mat Fac Was Fac Fac Was Fac Combat Hostiles Destroyed 81 | . 4 17 12 2 . 28 18 . . Guns 19 | . 2 5 8 1 . 3 . . . Cannons 52 | . . 12 3 1 . 20 16 . . AOE 9 | . 2 . 1 . . 4 2 . . Classes Destroyed 14 | . 5 1 4 . . 4 . . . Worker 10 | . . . 1 . . 5 4 . . Builder 2 | . . . 1 . . . 1 . . Tunneler 4 | . . . 1 . . 2 1 . . Hauler 6 | . 1 1 1 . . 2 1 . . Recycler 6 | . 2 . 2 . . 1 1 . . Mechanic 1 | . . . . . . 1 . . . Operator 1 | . . . . . . 1 . . . Watcher 16 | . 3 3 1 . . 6 3 . . Swarmer 21 | . 2 . 6 2 . 7 4 . . Grunt 26 | . 2 10 2 . . 8 4 . . Brawler 1 | . . . . . . 1 . . . Sentry 19 | . . 7 3 . . 5 4 . . Hunter 3 | . . . 1 . . 1 1 . . Programmer 11 | . . . . . . 6 5 . . Best Kill Streak 7 | . 4 5 7 2 . 5 4 . . Combat Bots Only 5 | . 2 3 5 2 . 3 2 . . Max Kills in Single Turn 4 | . 1 1 4 1 . 4 3 . . Gunslinging . | . . . . . . . . . . Exploded 2 | . 1 . 1 . . 2 1 . . Melee . | . . . . . . . . . . Uniques/NPCs Destroyed . | . . . . . . . . . . Combat | -11 -10 -9 -8 -7 -7 -7 -6 -6 -6 -------- Run | Scr Mat Mat Mat Fac Was Fac Fac Was Fac Damage Taken 3845 | . 21 489 331 98 . 994 1383 509 20 Core 618 | . . 57 64 22 . 58 63 344 10 Absorbed by Shields . | . . . . . . . . . . Redirected to Shielding 16 | . . . 10 3 . 3 . . . Regen/Repaired (Parts) 155 | . . . 74 . . 81 . . . Core Remaining (%) 92 | 100 100 85 88 . . 88 . . . Volleys Fired 316 | . 24 70 48 5 . 99 69 . 1 Largest 3 | . 2 2 2 2 . 3 3 . 2 Hottest 123 | . 59 101 101 89 . 123 123 . 80 Shots Fired 563 | . 46 131 86 10 . 162 125 1 2 Gun 209 | . 38 71 69 5 . 23 . 1 2 Cannon 344 | . 6 60 17 5 . 135 121 . . Launcher 10 | . 2 . . . . 4 4 . . Special . | . . . . . . . . . . Kinetic 400 | . 44 94 37 6 . 117 102 . . Thermal 66 | . . 36 27 . . . . 1 2 Explosive 10 | . 2 . . . . 4 4 . . Electromagnetic 87 | . . 1 22 4 . 41 19 . . Robot Hit Streak 24 | . 15 15 15 17 . 24 22 7 1 Robot Miss Streak 5 | . 1 5 3 . . 3 2 . 1 Penetration Max 1 | . . . . . . 1 1 . . Secondary Targets . | . . . . . . . . . . Shots Hit Robots 402 | . 37 83 56 7 . 120 97 1 1 Core Hits 206 | . 18 35 32 4 . 66 50 1 . Critical Kills . | . . . . . . . . . . Critical Parts Destroyed 1 | . 1 . . . . . . . . Critical Strikes 30 | . 1 5 5 . . 15 4 . . Burn 8 | . . 4 4 . . . . . . Destroy 1 | . 1 . . . . . . . . Blast 21 | . . 1 1 . . 15 4 . . Melee Attacks . | . . . . . . . . . . Impact . | . . . . . . . . . . Slashing . | . . . . . . . . . . Piercing . | . . . . . . . . . . Sneak Attacks . | . . . . . . . . . . Combat Hostiles . | . . . . . . . . . . Follow-up Attacks . | . . . . . . . . . . Damage Inflicted 9887 | . 480 1346 1192 141 . 3743 2953 19 13 Guns 2118 | . 227 471 834 76 . 483 . 14 13 Cannons 6367 | . 127 875 204 65 . 2522 2574 . . Explosions 1388 | . 126 . 145 . . 738 379 . . Melee . | . . . . . . . . . . Ramming 14 | . . . 9 . . . . 5 . Kinetic 6405 | . 354 1006 398 80 . 2324 2243 . . Thermal 1177 | . . 320 424 . . 406 . 14 13 Explosive 837 | . 126 . . . . 332 379 . . Electromagnetic 1454 | . . 20 361 61 . 681 331 . . Impact . | . . . . . . . . . . Slashing . | . . . . . . . . . . Piercing . | . . . . . . . . . . Highest Corruption 5 | . . 1 . . . 5 3 3 3 Average Corruption 2 | . . 1 . . . 3 2 3 3 Corruption Purged . | . . . . . . . . . . Corruption Blocked . | . . . . . . . . . . Effects 95 | . . 11 . . . 51 27 4 2 Message Errors 20 | . . 2 . . . 11 5 1 1 Matter Fused 16 | . . 3 . . . 9 4 . . Heat Flow Errors 13 | . . 3 . . . 7 3 . . Energy Discharges 15 | . . 1 . . . 5 7 1 1 Data Loss (minor) 16 | . . . . . . 9 6 1 . Data Loss (major) 6 | . . 1 . . . 4 1 . . Misfires 7 | . . 1 . . . 5 . 1 . Alerts 1 | . . . . . . 1 . . . Weapon Failures 1 | . . . . . . . 1 . . Overload Shots . | . . . . . . . . . . Overflow Damage 175 | . 4 18 . . . 74 79 . . Projectiles 97 | . . 18 . . . 20 59 . . Explosions 78 | . 4 . . . . 54 20 . . Melee . | . . . . . . . . . . Knockbacks 44 | . 1 7 . . . 19 17 . . Impact . | . . . . . . . . . . Kinetic 41 | . 1 7 . . . 16 17 . . Secondary 3 | . . . . . . 3 . . . Self-Inflicted Damage 147 | . . . . . . 78 67 2 . Shots 6 | . . . . . . 4 2 . . Rammed 2 | . . . . . . . . 2 . Targets Rammed 6 | . . . 3 . . 1 . 2 . Kicked 4 | . . . 3 . . 1 . . . Crushed . | . . . . . . . . . . Highest Temperature 353 | . 20 263 101 90 . 353 247 . 256 Average Temperature 74 | . 9 54 28 34 . 101 69 . 125 Received Heat Transfer 1407 | . 6 387 144 . . 399 459 . 12 Effects 1 | . . . . . . 1 . . . Shutdowns 1 | . . . . . . 1 . . . Siege Activations . | . . . . . . . . . . Robots Corrupted 1 | . . . . . . 1 . . . Combat Hostiles 1 | . . . . . . 1 . . . Parts Fried 9 | . . . 2 . . 7 . . . Impact Corruptions . | . . . . . . . . . . Robots Melted . | . . . . . . . . . . Combat Hostiles . | . . . . . . . . . . Parts Melted 9 | . . 3 6 . . . . . . Heat Transferred 2733 | . . 1110 1149 . . 400 . 37 37 Parts Sabotaged . | . . . . . . . . . . Parts Stolen . | . . . . . . . . . . Parts Stripped . | . . . . . . . . . . Power Chain Reactions 6 | . . . 2 . . 4 . . . Missiles Intercepted . | . . . . . . . . . . Alert | -11 -10 -9 -8 -7 -7 -7 -6 -6 -6 ------- Run | Scr Mat Mat Mat Fac Was Fac Fac Was Fac Peak Influence 368 | . 173 360 261 69 16 368 274 31 137 Initial 24 | . . . 18 4 16 8 18 24 10 Average 87 | . 99 157 68 57 16 90 72 11 85 Maximum Alert Level 1 | . . 1 1 . . 1 1 . . Low Security (%) 88 | 100 100 62 94 100 100 84 97 100 100 Level 1 11 | . . 37 5 . . 15 2 . . Level 2 . | . . . . . . . . . . Level 3 . | . . . . . . . . . . Level 4 . | . . . . . . . . . . Level 5 . | . . . . . . . . . . High Security . | . . . . . . . . . . Max Security . | . . . . . . . . . . Squads Dispatched 16 | . . 2 2 . . 6 5 . 1 Investigation 2 | . . . . . . 1 1 . . Extermination 8 | . . . . . . 4 4 . . Reinforcement 6 | . . 2 2 . . 1 . . 1 Assault . | . . . . . . . . . . Garrison . | . . . . . . . . . . Intercept . | . . . . . . . . . . Searches Triggered . | . . . . . . . . . . Construction Impeded 1 | . . . . . . 1 . . . Haulers Reinforced 1 | . . . . . . . . . 1 Active Scanning Responses . | . . . . . . . . . . Cargo Convoy Interrupts . | . . . . . . . . . . Stealth | -11 -10 -9 -8 -7 -7 -7 -6 -6 -6 --------- Run | Scr Mat Mat Mat Fac Was Fac Fac Was Fac Distress Signals 4 | . . 1 1 . . 2 . . . Communications Jammed . | . . . . . . . . . . Distress Signals . | . . . . . . . . . . Times Spotted 130 | . 8 23 19 2 . 43 25 9 1 Peak Tracking Total 5 | . 4 5 4 2 . 4 4 5 2 Tactical Retreats 5 | . . . . . . 3 1 1 . Traps | -11 -10 -9 -8 -7 -7 -7 -6 -6 -6 ------- Run | Scr Mat Mat Mat Fac Was Fac Fac Was Fac Traps Triggered 9 | . . 2 2 1 . 3 1 . . Indirectly . | . . . . . . . . . . Trap Hack Attempts . | . . . . . . . . . . Triggered . | . . . . . . . . . . Disarmed 6 | . 6 . . . . . . . . Reprogrammed . | . . . . . . . . . . Reused . | . . . . . . . . . . Traps Extracted . | . . . . . . . . . . Installed . | . . . . . . . . . . Triggered . | . . . . . . . . . . Machines | -11 -10 -9 -8 -7 -7 -7 -6 -6 -6 ---------- Run | Scr Mat Mat Mat Fac Was Fac Fac Was Fac Machines Disabled 30 | . . 1 . . . 21 8 . . Max in Single Turn 16 | . . 1 . . . 16 2 . . Machines Sabotaged . | . . . . . . . . . . Garrisons Compromised . | . . . . . . . . . . Overloaded Fab Kills . | . . . . . . . . . . Hacking | -11 -10 -9 -8 -7 -7 -7 -6 -6 -6 --------- Run | Scr Mat Mat Mat Fac Was Fac Fac Was Fac Machines Accessed 21 | . 3 4 5 . . 7 1 . 1 Terminals 16 | . 3 3 3 . . 5 1 . 1 Fabricators . | . . . . . . . . . . Repair Stations 4 | . . . 2 . . 2 . . . Recycling Units . | . . . . . . . . . . Scanalyzers 1 | . . 1 . . . . . . . Garrison Access . | . . . . . . . . . . Total Hacks 49 | . 9 7 13 . . 15 4 . 1 Successful 35 | . 8 6 10 . . 11 . . . Failed 14 | . 1 1 3 . . 4 4 . 1 Catastrophic 2 | . . . . . . . 2 . . Database Lockouts . | . . . . . . . . . . Manual 31 | . 4 4 8 . . 10 4 . 1 Terminals 39 | . 9 5 9 . . 11 4 . 1 Fabricators . | . . . . . . . . . . Repair Stations 8 | . . . 4 . . 4 . . . Recycling Units . | . . . . . . . . . . Scanalyzers 2 | . . 2 . . . . . . . Garrison Access . | . . . . . . . . . . Terminal Hacks 13 | . 6 2 3 . . 2 . . . Record 4 | . 4 . . . . . . . . Level Access Points 1 | . . . . . . 1 . . . Fabricator Index 1 | . . 1 . . . . . . . Repair Station Index 1 | . . . 1 . . . . . . Alert Level 3 | . . 1 1 . . 1 . . . Disarm Traps 1 | . 1 . . . . . . . . Transport Status 1 | . 1 . . . . . . . . Recall Reinforcements 1 | . . . 1 . . . . . . Fabricator Hacks . | . . . . . . . . . . Repair Station Hacks 7 | . . . 4 . . 3 . . . Scan Component 4 | . . . 2 . . 2 . . . Repair 3 | . . . 2 . . 1 . . . Recycling Unit Hacks . | . . . . . . . . . . Scanalyzer 2 | . . 2 . . . . . . . Insert Component 1 | . . 1 . . . . . . . Analyze 1 | . . 1 . . . . . . . Garrison Access Hacks . | . . . . . . . . . . Unauthorized Hacks 13 | . 2 2 3 . . 6 . . . Terminals 13 | . 2 2 3 . . 6 . . . Botnet 12 | . 2 2 3 . . 5 . . . Operators 1 | . . . . . . 1 . . . Fabricators . | . . . . . . . . . . Repair Stations . | . . . . . . . . . . Recycling Units . | . . . . . . . . . . Scanalyzers . | . . . . . . . . . . Garrison Access . | . . . . . . . . . . Data Cores Recovered 1 | . . . . . . 1 . . . Used . | . . . . . . . . . . Hacking Detections 12 | . 2 2 3 . . 3 1 . 1 Full Trace Events 1 | . 1 . . . . . . . . Feedback Events . | . . . . . . . . . . Feedback Blocked . | . . . . . . . . . . Robot Schematics Acquired . | . . . . . . . . . . Robots Built . | . . . . . . . . . . Authchips . | . . . . . . . . . . Time . | . . . . . . . . . . Total Robot Build Rating . | . . . . . . . . . . Part Schematics Acquired 1 | . . 1 . . . . . . . Parts Built . | . . . . . . . . . . Authchips . | . . . . . . . . . . Time . | . . . . . . . . . . Total Part Build Rating . | . . . . . . . . . . Parts Repaired 3 | . . . 2 . . 1 . . . Time 80 | . . . 58 . . 22 . . . Parts Recycled . | . . . . . . . . . . Recycled Matter . | . . . . . . . . . . Retrieved Matter . | . . . . . . . . . . Retrieved Components . | . . . . . . . . . . Parts Scanalyzed 1 | . . 1 . . . . . . . Part Schematics Acquired 1 | . . 1 . . . . . . . Parts Damaged . | . . . . . . . . . . Bothacking | -11 -10 -9 -8 -7 -7 -7 -6 -6 -6 ------------ Run | Scr Mat Mat Mat Fac Was Fac Fac Was Fac Used RIF Installer . | . . . . . . . . . . Robots Hacked . | . . . . . . . . . . Non-combat . | . . . . . . . . . . Combat . | . . . . . . . . . . Robot Hacks Applied . | . . . . . . . . . . Relay Couplers Released 4 | . . . . . . 4 . . . Programmers 4 | . . . . . . 4 . . . Fabnet Peak Effective % . | . . . . . . . . . . Robots Rewired . | . . . . . . . . . . Allies Hacked . | . . . . . . . . . . Hacks Repelled . | . . . . . . . . . . Allies | -11 -10 -9 -8 -7 -7 -7 -6 -6 -6 -------- Run | Scr Mat Mat Mat Fac Was Fac Fac Was Fac Total Allies 19 | . . . . . . . . 19 . Largest Group 19 | . . . . . . . . 19 18 Highest-Rated Group 684 | . . . . . . . . 684 655 Highest-Rated Ally 50 | . . . . . . . . 50 50 Total Orders . | . . . . . . . . . . Ally Attacks 154 | . . . . . . . . 131 23 Total Damage 4839 | . . . . . . . . 4257 582 Kills 11 | . . . . . . . . 6 5 Allies Corrupted . | . . . . . . . . . . Allies Melted . | . . . . . . . . . . Intel | -11 -10 -9 -8 -7 -7 -7 -6 -6 -6 ------- Run | Scr Mat Mat Mat Fac Was Fac Fac Was Fac Robot Analysis Total . | . . . . . . . . . . Derelict Logs Recovered . | . . . . . . . . . . Drone Launches . | . . . . . . . . . . Drone Recoveries . | . . . . . . . . . . Exploration | -11 -10 -9 -8 -7 -7 -7 -6 -6 -6 ------------- Run | Scr Mat Mat Mat Fac Was Fac Fac Was Fac Turns Passed 7757 | 79 404 1120 975 201 98 2553 1986 269 72 Spaces Moved 5172 | 50 269 753 595 138 76 1704 1119 281 187 Core 207 | 4 . . 4 . . . . 192 7 Treads 826 | . . . . . . . 803 23 . Legs 3893 | 46 269 753 591 138 76 1704 316 . . Wheels . | . . . . . . . . . . Hover 30 | . . . . . . . . 30 . Flight 216 | . . . . . . . . 36 180 Fastest Speed 21 | 50 120 120 127 130 130 126 128 40 21 Average Speed 125 | 114 120 120 131 130 130 129 153 72 27 Slowest Speed 1550 | 120 120 120 450 130 130 197 320 1550 150 Overloaded Moves . | . . . . . . . . . . Propulsion Burnouts . | . . . . . . . . . . Robots Hopped . | . . . . . . . . . . Cave-ins Triggered . | . . . . . . . . . . Exploration Rate (%) 35 | 5 41 47 38 4 65 40 27 80 4 Regions Visited 9 Branch Regions . Pre-discovered Areas . | . . . . . . . . . . Known Exits Taken 5 | 1 1 1 1 . . 1 . . . Unknown Exits Taken . | . . . . . . . . . . Scrap Searched . | . . . . . . . . . . Spaces Dug . | . . . . . . . . . . Terrain Destroyed 230 | . 13 3 10 . . 142 62 . . Melee . | . . . . . . . . . . Projectile 28 | . . 3 1 . . 12 12 . . AOE 202 | . 13 . 9 . . 130 50 . . Terrain Rammed . | . . . . . . . . . . Walls Destroyed . | . . . . . . . . . . Machines Disabled . | . . . . . . . . . . Actions | -11 -10 -9 -8 -7 -7 -7 -6 -6 -6 --------- Run | Scr Mat Mat Mat Fac Was Fac Fac Was Fac Total 5892 | 72 315 850 706 151 75 1906 1264 348 205 Wait 67 | . . . 2 . . 16 2 47 . Move 5165 | 49 268 752 594 138 75 1703 1119 280 187 Hop . | . . . . . . . . . . Pick Up 98 | 14 9 10 14 2 . 26 21 2 . Fast Attach 28 | . . 1 10 . . 4 . 4 9 Attach 68 | 8 5 7 11 4 . 16 13 3 1 Detach 25 | . 2 3 3 1 . 7 5 3 1 Swap 39 | . 1 . 3 . . 12 23 . . Drop 80 | 1 6 7 18 1 . 22 12 7 6 Fire 316 | . 24 70 48 5 . 99 69 . 1 Melee . | . . . . . . . . . . Ram 2 | . . . . . . . . 2 . Kick 4 | . . . 3 . . 1 . . . Crush . | . . . . . . . . . . Escape Stasis . | . . . . . . . . . . Rewire . | . . . . . . . . . . Trap . | . . . . . . . . . . Miscellaneous . | . . . . . . . . . . Route ------- -11/Scrapyard -10/Materials (discovered 2 exits: *Mat / *Min) -9/Materials (discovered 4 exits: *Mat x2 / *Min x2) -8/Materials -7/Factory -7/Waste -7/Factory (discovered 4 exits: *Fac x4) -6/Factory -6/Waste -6/Factory History --------- Turn | Location | Event 6 | -11/Scrapyard | Identified exit to Materials 6 | -11/Scrapyard | Discovered exit to Materials (range 16) 80 | -11/Scrapyard | Entered Materials 80 | -10/Materials | Evolved 1 slot: Propulsion x1 97 | -10/Materials | Identified exit to Mines 97 | -10/Materials | Discovered exit to Mines (range 15) 246 | -10/Materials | Identified exit to Materials 246 | -10/Materials | Discovered exit to Materials (range 10) 314 | -10/Materials | Build established: Hacker-Mutant 484 | -10/Materials | Entered another Materials area 484 | -9/Materials | Evolved 2 slots: Propulsion x1, Weapon x1 601 | -9/Materials | Identified exit to Mines 601 | -9/Materials | Discovered exit to Mines (range 16) 673 | -9/Materials | Discovered exit to Mines (range 13) 1005 | -9/Materials | Identified exit to Materials 1005 | -9/Materials | Discovered exit to Materials (range 4) 1257 | -9/Materials | Discovered exit to Materials (range 8) 1604 | -9/Materials | Entered another Materials area 1604 | -8/Materials | Evolved 2 slots: Propulsion x1, Utility x1 2070 | -8/Materials | Repaired Mni. Grenade Launcher 2526 | -8/Materials | Repaired Lrg. Battery 2570 | -8/Materials | Identified exit to Factory 2570 | -8/Materials | Discovered exit to Factory (range 3) 2579 | -8/Materials | Entered Factory 2579 | -7/Factory | Evolved 2 slots: Power x1, Utility x1 2780 | -7/Factory | Sucked down chute 2780 | -7/Factory | Entered Waste 2780 | -7/Waste | The area was eerily silent 2864 | -7/Waste | Identified exit to Factory 2864 | -7/Waste | Discovered exit to Factory (range 11) 2878 | -7/Waste | Entered Factory 4774 | -7/Factory | Repaired Gauss Cannon 5205 | -7/Factory | Identified exit to Factory 5431 | -7/Factory | Entered another Factory area 5431 | -6/Factory | Evolved 2 slots: Propulsion x1, Utility x1 7150 | -6/Factory | Spotted B-75 Beast 7417 | -6/Factory | Sucked down chute 7417 | -6/Factory | Entered Waste 7427 | -6/Waste | Spotted C-40 Crusher 7430 | -6/Waste | Spotted C-40 Crusher 7445 | -6/Waste | Crushed by Compactor (1 part destroyed, 1 dropped) 7448 | -6/Waste | Crushed by Compactor (1 part destroyed, 1 dropped) 7449 | -6/Waste | Spotted C-40 Crusher 7451 | -6/Waste | Crushed by Compactor (1 part destroyed, 1 dropped) 7454 | -6/Waste | Crushed by Compactor (1 part destroyed, 2 dropped) 7457 | -6/Waste | Crushed by Compactor (1 part destroyed, 1 dropped) 7460 | -6/Waste | Crushed by Compactor (1 part destroyed, 1 dropped) 7463 | -6/Waste | Crushed by Compactor (1 part destroyed, 2 dropped) 7475 | -6/Waste | Spotted C-40 Crusher 7494 | -6/Waste | Lost 7 parts (2p1n2u2w) 7512 | -6/Waste | Crushed by Compactor (1 part destroyed, 1 dropped) 7532 | -6/Waste | Spotted C-40 Crusher 7557 | -6/Waste | Spotted C-40 Crusher 7560 | -6/Waste | Warlord forces began an assault 7603 | -6/Waste | Allies destroyed C-40 Crusher 7604 | -6/Waste | Allies destroyed C-40 Crusher 7605 | -6/Waste | Allies destroyed C-40 Crusher 7608 | -6/Waste | Allies destroyed C-40 Crusher 7613 | -6/Waste | Allies destroyed C-40 Crusher 7626 | -6/Waste | Identified exit to Factory 7626 | -6/Waste | Discovered exit to Factory (range 13) 7686 | -6/Waste | Entered Factory 7686 | -6/Factory | Accompanied by 18 allies 7758 | -6/Factory | Self-destructed Last Messages --------------- 07696_ Acquired Imp. Surge Thruster. 07698_ ALERT: All DSF locations entering lockdown mode. 07699_ Dropped Backup Propulsion III. 07700_ Acquired Xenon Bombardment Thruster. 07701_ ALERT: Hostile activity reported, dispatching reinforcements to area. 07702_ E0-B8H(s) destroyed. 07703_ Dropped Q-thruster. 07704_ Acquired Cesium-ion Thruster. 07711_ Connecting with Terminal... 07715_ AI31JIUQ8XTTESCX,GFHFWRGJMC6MQ#VQ 07732_ Y-54 Guardian destroyed. 07732_ Acquired Component Analysis Suite. 07734_ Acquired Imp. Heat Sink. 07738_ Acquired 70 matter. 07740_ System corrupted: Energy discharge (-25). 07744_ Dropped Imp. Medium Treads. 07745_ Dropped Component Analysis Suite. 07745_ Dropped Imp. Heat Sink. 07756_ TT-BC5(m) repairs 6T-80S(s). Map ----- +----------------------------------------------------+ | ?????????????????????????????????????????????????? | | ?????????????????????????????????????????????????? | | ?????????????????????????????????????????????????? | | ?????????????????????????????????????????????????? | | ?????????????????????????????????????????????????? | | ?????????????????????????????????????????????????? | | ?????????????????????????????????????????????????? | | ?????????????????????????????????????????????????? | | ?????????????????????????????????????????????????? | | ?????????????????????????????????????????????????? | | ?????????????????????????????????????????????????? | | ?????????????????????????????????????????????????? | | ?????????????????????????????????????????????????? | | ?????????????????????????????????????????????????? | | ?????????????????#####+#######???????????????????? | | ????????????????# !=!#???????????????????? | | ????????????????# """"""" ! #???????????????????? | | ????????????????????"""""" #???????????????????? | | ?????????????????? """""""sd #???????????????????? | | ????????????????# """"""" sd#???????????????????? | | ????????????????# s #???????????????????? | | ????????????????# """""""sm #???????????????????? | | ?????????????????? """"""" #???????????????????? | | ???????????????? """"""" #???????????????????? | | ??????????????# """"""" gg#???????????????????? | | ???????????????# @ g#???????????????????? | | ????????????????# * #???????????????????? | | ????????????????###########m##???????????????????? | | ##########?###########????# #????????????????????? | | # #????# #????????????????????? | | """""""" # """"""""" ####?# #????????????????????? | | # + ###/######???????????????? | | ""# """"""""" ## # ] #???????????????? | | T"# ## # ]] #???????????????? | | ""# """"""""" ## # ]] #???????????????? | | # ## # ##??????????????? | | +#############/######## # #??????????????? | | / """ [##??????????????? | | ##### # "Y ! #???????????????? | | #???# # """ #???????????????? | | #???# + #???????????????? | | #???#+##########???????????????? | | ###############+#######??????????????????????????? | | ?????????# #??????????????????????????? | | ?????????# #??????????????????????????? | | ?????????# """""" #??????????????????????????? | | ?????????# """""" #??????????????????????????? | | ?????????# """""" #??????????????????????????? | | ?????????# """""" #??????????????????????????? | | ?????????# #??????????????????????????? | +----------------------------------------------------+ Best States ------------- Heat Dissipation 65 Energy Generation 25 Energy Capacity 490 Matter Stores 650 Matter Capacity 650 Sight Range 16 Terrain Scan Density 10 Armor Coverage 225 Resistance: KI 35 Resistance: TH 35 Resistance: EX 35 Resistance: EM 35 Resistance: I 35 Resistance: S 35 Resistance: P 35 Core Shielding 20 Evasion (%) 65 Recoil Reduction 6 Particle Charging 15 Offensive Hacking 30 Item Schematics ----------------- Aluminum Leg | -9/Materials | Scanalyzed Robot Schematics ------------------ None Fabricated ------------ Nothing Alien Tech Used ----------------- None Achievements -------------- Maybe Next Time I'll Detach My Launcher Challenges ------------ None Game ------ Seed SupersonicMakeshiftWell Manual? 0 Play Time 02:43:05 Cumulative 35.6 hours Start 2023.01.04 @ 21:42:58 End 2023.01.26 @ 01:14:57 Sessions 7 Manual Loads 0 Difficulty Explorer Special Mode None Game No. 42 Rogue 27 Adventurer 9 Explorer 6 Win Type - Total 2 Types 2/0/0/0/0/0/0/0/0 Lore% 13 Gallery% 31 Achievement% 23 Wizard Run 0 Options --------- ASCII 0 Keyboard 0 Movement Mouse Keybinds 0 Fullscreen 1 Font 32/SmallcapsGlow Map View 63x52 Tactical HUD 1 Map Filters NONE Filters NONE Steam X RUN: 3c094522-8a17-41c5-978e-ec2f61e5bcab